Workbook

Sheet MSU
B1: Kalle Raitala | E1: 16.6.1981 Hyvinkää
B2: SUPERPESIS | E2: Runkosarja | I2: Kärkilyönnit (KL), pesänvälit | P2: Runkosarja TOP-30 | U2: Ylempi loppusarja | AB2: Ylempi loppusarja TOP-10 | AG2: Play off, voitot, voittoprosentti | AL2: Arvo-ottelut | AO2: Mitalit
B3: Vuosi | C3: Sija | D3: Seura | E3: OTT | F3: KUN | G3: LÖI | H3: TOI | I3: KL | J3: 0 > 1 | K3: 1 > 2 | L3: 2 > 3 | M3: 3 > k | N3: KL-% | P3: LÖI | Q3: TOI | R3: L+T | S3: KL | U3: OTT | V3: KUN | W3: LÖI | X3: TOI | Y3: KL | Z3: KL-% | AB3: LÖI | AC3: TOI | AD3: L+T | AE3: KL | AG3: Puolivälierät | AH3: Välierät | AI3: Pronssi | AJ3: Finaalit | AL3: IL | AM3: LL | AN3: hSM | AO3: K | AP3: H | AQ3: P
B4: 1999 | C4: 12. | D4: HP | E4: 10 | F4: 1 | G4: 1 | H4: 7 | I4: 31 | J4: 6 | K4: 15 | L4: 8 | M4: 2 | N4: 47.0 %
B5: 2000 | C5: 11. | D5: LP | E5: 25 | F5: 0 | G5: 3 | H5: 15 | I5: 95 | J5: 67 | K5: 19 | L5: 6 | M5: 3 | N5: 59.4 %
B6: 2001 | C6: 4. | D6: Tahko | E6: 26 | F6: 0 | G6: 1 | H6: 26 | I6: 53 | J6: 48 | K6: 1 | L6: 3 | M6: 1 | N6: 57.6 % | U6: 9 | V6: 1 | W6: 2 | X6: 9 | Y6: 34 | Z6: 85.0 % | AG6: 3-2 Lippo | AH6: 0-3 KiPa | AI6: 0-2 PattU
B7: 2002 | C7: 3. | D7: Tahko | E7: 22 | F7: 1 | G7: 2 | H7: 18 | I7: 69 | J7: 57 | K7: 7 | L7: 2 | M7: 3 | N7: 53.1 % | U7: 1 | V7: 0 | W7: 0 | X7: 1 | Y7: 4 | Z7: 100.0 % | AG7: 3-0 UPV | AQ7: 1
B8: 2003 | C8: 2. | D8: KiPe | E8: 24 | F8: 0 | G8: 2 | H8: 18 | I8: 65 | J8: 60 | K8: 3 | L8: 0 | M8: 2 | N8: 54.2 % | U8: 12 | V8: 0 | W8: 0 | X8: 13 | Y8: 35 | Z8: 49.3 % | AC8: 9. | AG8: 4-0 SMJ | AH8: 4-2 KoU | AJ8: 0-2 SoJy | AP8: 1
B9: 2004
B10: 2005 | C10: 7. | D10: Tahko 2 | F10: suomensarja
B11: Yhteensä | E11: 107 | F11: 2 | G11: 9 | H11: 84 | I11: 313 | J11: 238 | K11: 45 | L11: 19 | M11: 11 | N11: 55.1 % | P11: 0-0-0 | Q11: 0-0-0 | R11: 0-0-0 | S11: 0-0-0 | U11: 22 | V11: 1 | W11: 2 | X11: 23 | Y11: 73 | Z11: 63.5 % | AB11: 0-0-0 | AC11: 0-0-0 | AD11: 0-0-0 | AE11: 0-0-0 | AG11: 3/3 | AH11: 1/2 | AI11: 0/1 | AJ11: 0/1 | AL11: 0 | AM11: 0 | AN11: 0 | AO11: 0 | AP11: 1 | AQ11: 1
AG12: 100.0 % | AH12: 50.0 % | AI12: 0.0 % | AJ12: 0.0 %
B13: Pesispörssi | D13: 266.3
B15: URA SUPERISSA | E15: OTT | F15: KUN | G15: LÖI | H15: TOI | I15: KL | K15: ka/L | L15: ka/T | M15: ka/KL | N15: KL-% | P15: ENSIMMÄISET RUNKOSARJASSA | AG15: ENSIMMÄISET PUDOTUSPELEISSÄ | AL15: YLEISÖ
B16: Runkosarja | E16: 107 | F16: 2 | G16: 9 | H16: 84 | I16: 313 | K16: 0.10 | L16: 0.79 | M16: 2.93 | N16: 55.1 % | P16: Ottelu | R16: 08.07. 1999 HP - KPL 1-2 (4-6, 4-1, 0-1) | AA16: 1. ottelu | AC16: 18 v 0 kk 22 pv | AG16: Ottelu | AH16: 1. 16.08. 2001 Tahko - Lippo 2-0 | AL16: 1832 | AN16: 20 v 2 kk 0 pv
B17: Ylempi loppusarja | E17: 22 | F17: 1 | G17: 2 | H17: 23 | I17: 73 | K17: 0.14 | L17: 1.05 | M17: 3.32 | N17: 63.5 % | P17: Lyöty | R17: 27.07. 1999 SMJ - HP 2-1 (2-9, 5-4, 0-0, 3-1) | AA17: 6. ottelu | AC17: 18 v 1 kk 11 pv | AG17: Lyöty | AH17: 2. 19.08. 2001 Tahko - Lippo 2-1 s | AL17: 1911 | AN17: 20 v 2 kk 3 pv
B18: Alempi loppusarja | E18: 14 | F18: 1 | G18: 5 | H18: 7 | I18: 53 | K18: 0.43 | L18: 0.50 | M18: 3.79 | N18: 53.5 % | P18: Tuotu | R18: 08.07. 1999 HP - KPL 1-2 (4-6, 4-1, 0-1) | AA18: 1. ottelu | AC18: 18 v 0 kk 22 pv | AG18: Tuotu | AH18: 1. 16.08. 2001 Tahko - Lippo 2-0 | AL18: 1832 | AN18: 20 v 2 kk 0 pv
B19: KAIKKI | E19: 143 | F19: 4 | G19: 16 | H19: 114 | I19: 439 | K19: 0.14 | L19: 0.80 | M19: 3.07 | N19: =PRODUCT(439/782) -> 56.1 % | P19: Kunnari | R19: 27.07. 1999 SMJ - HP 2-1 (2-9, 5-4, 0-0, 3-1) | AA19: 6. ottelu | AC19: 18 v 1 kk 11 pv | AG19: Kunnari | AH19: 2. 19.08. 2001 Tahko - Lippo 2-1 s | AL19: 1911 | AN19: 20 v 2 kk 3 pv
O20: =SUM(O17:O19) -> 0
B21: Seurat | D21: HP = Haminan Palloilijat (1928)
D22: LP = Loimaan Palloilijat (1931)
D23: Tahko = Hyvinkään Tahko (1915)
D24: KiPe = Kinnarin Pesis (1998)

Sheet MSS
B1: Kalle Raitala | E1: 16.6.1981 Hyvinkää
B2: YKKÖSPESIS | E2: Runkosarja | L2: Runkosarja TOP-10 | Q2: Jatkosarjat | X2: SUOMENSARJA | AA2: Runkosarja | AH2: Runkosarja TOP-10 | AM2: Jatkosarjat
B3: Vuosi | C3: Sija | D3: Seura | E3: OTT | F3: KUN | G3: LÖI | H3: TOI | I3: KL | J3: KL-% | L3: LÖI | M3: TOI | N3: L+T | O3: KL | Q3: OTT | R3: KUN | S3: LÖI | T3: TOI | U3: KL | V3: KL-% | X3: Vuosi | Y3: Sija | Z3: Seura | AA3: OTT | AB3: KUN | AC3: LÖI | AD3: TOI | AE3: KL | AF3: KL-% | AH3: LÖI | AI3: TOI | AJ3: L+T | AK3: KL | AM3: OTT | AN3: KUN | AO3: LÖI | AP3: TOI | AQ3: KL | AR3: KL-%
X4: 2005 | Y4: 7. | Z4: Tahko 2 | AA4: 4 | AB4: 3 | AC4: 8 | AD4: 14 | AE4: 34 | AF4: 75.6 % | AG4: 45
B5: YHTEENSÄ | E5: =SUM(E4:E4) -> 0 | F5: =SUM(F4:F4) -> 0 | G5: =SUM(G4:G4) -> 0 | H5: =SUM(H4:H4) -> 0 | I5: =SUM(I4:I4) -> 0 | J5: 0.0 % | K5: =SUM(K4:K4) -> 0 | Q5: =SUM(Q4:Q4) -> 0 | R5: =SUM(R4:R4) -> 0 | S5: =SUM(S4:S4) -> 0 | T5: =SUM(T4:T4) -> 0 | U5: =SUM(U4:U4) -> 0 | V5: 0.0 % | W5: =SUM(W4:W4) -> 0 | X5: YHTEENSÄ | AA5: =SUM(AA4:AA4) -> 4 | AB5: =SUM(AB4:AB4) -> 3 | AC5: =SUM(AC4:AC4) -> 8 | AD5: =SUM(AD4:AD4) -> 14 | AE5: =SUM(AE4:AE4) -> 34 | AF5: =PRODUCT(AE5/AG5) -> 75.6 % | AG5: =SUM(AG4:AG4) -> 45 | AM5: =SUM(AM4:AM4) -> 0 | AN5: =SUM(AN4:AN4) -> 0 | AO5: =SUM(AO4:AO4) -> 0 | AP5: =SUM(AP4:AP4) -> 0 | AQ5: =SUM(AQ4:AQ4) -> 0 | AR5: 0.0 % | AS5: =SUM(AS4:AS4) -> 0
B7: KAIKKI OTTELUT | E7: OTT | F7: KUN | G7: LÖI | H7: TOI | I7: KL | J7: KL-% | L7: ka/L | M7: ka/T | N7: ka/l+t | O7: ka/kl | R7: Seurat | T7: HP = Haminan Palloilijat (1928)
B8: SUPERPESIS | E8: 143 | F8: 4 | G8: 16 | H8: 114 | I8: 439 | J8: 56.1 % | K8: =PRODUCT(I8/J8) -> 782.5311943 | L8: =PRODUCT((F8+G8)/E8) -> 0.14 | M8: =PRODUCT(H8/E8) -> 0.80 | N8: =PRODUCT((F8+G8+H8)/E8) -> 0.94 | O8: =PRODUCT(I8/E8) -> 3.07 | T8: LP = Loimaan Palloilijat (1931)
B9: YKKÖSPESIS | E9: =PRODUCT(E5+Q5) -> 0 | F9: =PRODUCT(F5+R5) -> 0 | G9: =PRODUCT(G5+S5) -> 0 | H9: =PRODUCT(H5+T5) -> 0 | I9: =PRODUCT(I5+U5) -> 0 | J9: 0.0 % | K9: =PRODUCT(K5+W5) -> 0 | L9: 0.00 | M9: 0.00 | N9: 0.00 | O9: 0.00 | T9: Tahko = Hyvinkään Tahko (1915)
B10: SUOMENSARJA | E10: =PRODUCT(AA5+AM5) -> 4 | F10: =PRODUCT(AB5+AN5) -> 3 | G10: =PRODUCT(AC5+AO5) -> 8 | H10: =PRODUCT(AD5+AP5) -> 14 | I10: =PRODUCT(AE5+AQ5) -> 34 | J10: =PRODUCT(I10/K10) -> 75.6 % | K10: =PRODUCT(AG5+AS5) -> 45 | L10: =PRODUCT((F10+G10)/E10) -> 2.75 | M10: =PRODUCT(H10/E10) -> 3.50 | N10: =PRODUCT((F10+G10+H10)/E10) -> 6.25 | O10: =PRODUCT(I10/E10) -> 8.50 | T10: KiPe = Kinnarin Pesis (1998)
B11: YHTEENSÄ | E11: =SUM(E8:E10) -> 147 | F11: =SUM(F8:F10) -> 7 | G11: 24 | H11: 128 | I11: 473 | J11: =PRODUCT(I11/K11) -> 57.2 % | K11: =SUM(K8:K10) -> 827.5311943 | L11: =PRODUCT((F11+G11)/E11) -> 0.21 | M11: =PRODUCT(H11/E11) -> 0.87 | N11: =PRODUCT((F11+G11+H11)/E11) -> 1.08 | O11: =PRODUCT(I11/E11) -> 3.22

Sheet Arvo-ottelut
B1: ITÄ - LÄNSI - KORTTI
B2: Kalle Raitala | C2: 16.6.1981 Hyvinkää
B3: B - POJAT | C3: Itä - Länsi, tulos | D3: Joukkue | E3: Seura | G3: V | H3: T | I3: H | J3: Up. | K3: Lj. | L3: Palk. | M3: O | N3: K | O3: L | P3: T | Q3: KL | R3: 1 | S3: 2 | T3: 3 | U3: k | V3: KL-% | W3: Pelinjohtaja | X3: Yleisöä
B4: 25.06. 1998 Sotkamo | C4: 2-1 (2-3, 10-4, 1-0) | D4: Länsi | E4: LP | I4: 1 | M4: 1 | P4: 1 | W4: Jyri Sarvikas | X4: 1351
B6: A - POJAT | C6: Itä - Länsi, tulos | D6: Joukkue | E6: Seura | G6: V | H6: T | I6: H | J6: Up. | K6: Lj. | L6: Palk. | M6: O | N6: K | O6: L | P6: T | Q6: KL | R6: 1 | S6: 2 | T6: 3 | U6: k | V6: KL-% | W6: Pelinjohtaja | X6: Yleisöä
B7: 05.08. 2000 Oulu | C7: 1-2 (3-2, 0-5, 1-2) | D7: Länsi | E7: LP | G7: 1 | J7: 3v | K7: 7 | M7: 1 | O7: 1 | Q7: 4/6 | R7: 1/1 | S7: 2/3 | U7: 1/2 | V7: 66.7 % | W7: Yrjö-Pekka Hautamäki | X7: 1900
B8: 14.07. 2001 Hamina | C8: 0-2 (1-3, 3-4) | D8: Länsi | E8: Tahko | G8: 1 | J8: 3v | K8: 1 | L8: I p | M8: 1 | P8: 4 | Q8: 4/5 | R8: 4/4 | T8: 0/1 | V8: 80.0 % | W8: Ismo Juka | X8: 2340
B9: Yhteensä | G9: 2 | M9: =SUM(M6:M8) -> 2 | P9: 4 | Q9: 8/11 | R9: 5/5 | S9: 2/3 | T9: 0/1 | U9: 1/2 | V9: 72.7 %

Sheet Kärkilyönnit
B1: KÄRKILYÖNNIT RUNKOSARJASSA | V1: VUOSITTAISET SIJOITUKSET TOP - 30
G2: 0 > 1 | J2: 1 > 2 | M2: 2 > 3 | P2: 3 > k | S2: Yhteensä
B3: Vuosi | C3: Sija | D3: Seura | E3: OTT | F3: KL | G3: YHT | H3: % | I3: KL | J3: YHT | K3: % | L3: KL | M3: YHT | N3: % | O3: KL | P3: YHT | Q3: % | R3: KL | S3: YHT | T3: % | V3: Vuosi | W3: Sija | X3: Seura | Y3: 0 > 1 | Z3: 1 > 2 | AA3: 2 > 3 | AB3: 3 > k | AC3: KL
B4: 1999 | C4: 12. | D4: HP | E4: 10 | F4: 6 | G4: 20 | H4: =PRODUCT(F4/G4) -> 30.0 % | I4: 15 | J4: 24 | K4: =PRODUCT(I4/J4) -> 62.5 % | L4: 8 | M4: 14 | N4: =PRODUCT(L4/M4) -> 57.1 % | O4: 8 | P4: 8 | Q4: =PRODUCT(O4/P4) -> 100.0 % | R4: 31 | S4: =PRODUCT(G4+J4+M4+P4) -> 66 | T4: 47.0 % | V4: 1999 | W4: 12. | X4: HP
B5: 2000 | C5: 11. | D5: LP | E5: 25 | F5: 67 | G5: 102 | H5: 65.7 % | I5: 19 | J5: 43 | K5: 44.2 % | L5: 6 | M5: 11 | N5: 54.5 % | O5: 3 | P5: 4 | Q5: 75.0 % | R5: 95 | S5: 160 | T5: 59.4 % | V5: 2000 | W5: 11. | X5: LP
B6: 2001 | C6: 2. | D6: Tahko | E6: 26 | F6: 48 | G6: 79 | H6: 60.8 % | I6: 1 | J6: 2 | K6: 50.0 % | L6: 3 | M6: 5 | N6: 60.0 % | O6: 1 | P6: 6 | Q6: 16.7 % | R6: 53 | S6: 92 | T6: 57.6 % | V6: 2001 | W6: 2. | X6: Tahko | Y6: 26.
B7: 2002 | C7: 3. | D7: Tahko | E7: 22 | F7: 57 | G7: 108 | H7: 52.8 % | I7: 7 | J7: 11 | K7: 63.6 % | L7: 2 | M7: 6 | N7: 33.3 % | O7: 3 | P7: 5 | Q7: 60.0 % | R7: 69 | S7: 130 | T7: 53.1 % | V7: 2002 | W7: 3. | X7: Tahko | Y7: 19.
B8: 2003 | C8: 2. | D8: KiPe | E8: 24 | F8: 60 | G8: 102 | H8: 58.8 % | I8: 3 | J8: 7 | K8: 42.9 % | L8: 0 | M8: 6 | N8: 0.0 % | O8: 2 | P8: 5 | Q8: 40.0 % | R8: 65 | S8: 120 | T8: 54.2 % | V8: 2003 | W8: 2. | X8: KiPe | Y8: 12.
B9: Yhteensä | E9: =SUM(E4:E8) -> 107 | F9: =SUM(F4:F8) -> 238 | G9: =SUM(G4:G8) -> 411 | H9: =PRODUCT(F9/G9) -> 57.9 % | I9: =SUM(I4:I8) -> 45 | J9: =SUM(J4:J8) -> 87 | K9: =PRODUCT(I9/J9) -> 51.7 % | L9: =SUM(L4:L8) -> 19 | M9: =SUM(M4:M8) -> 42 | N9: =PRODUCT(L9/M9) -> 45.2 % | O9: =SUM(O4:O8) -> 17 | P9: =SUM(P4:P8) -> 28 | Q9: =PRODUCT(O9/P9) -> 60.7 % | R9: =SUM(R4:R8) -> 313 | S9: =SUM(S4:S8) -> 568 | T9: =PRODUCT(R9/S9) -> 55.1 %
B11: KÄRKILYÖNNIT YLEMMISSÄ PUDOTUSPELEISSÄ | V11: VUOSITTAISET SIJOITUKSET TOP - 30
G12: 0 > 1 | J12: 1 > 2 | M12: 2 > 3 | P12: 3 > k | S12: Yhteensä
B13: Vuosi | C13: Sija | D13: Seura | E13: OTT | F13: KL | G13: YHT | H13: % | I13: KL | J13: YHT | K13: % | L13: KL | M13: YHT | N13: % | O13: KL | P13: YHT | Q13: % | R13: KL | S13: YHT | T13: % | V13: Vuosi | W13: Sija | X13: Seura | Y13: 0 > 1 | Z13: 1 > 2 | AA13: 2 > 3 | AB13: 3 > k | AC13: KL
B14: 1999 | C14: 12. | D14: HP | V14: 1999 | W14: 12. | X14: HP
B15: 2000 | C15: 11. | D15: LP | V15: 2000 | W15: 11. | X15: LP
B16: 2001 | C16: 4. | D16: Tahko | E16: 9 | F16: 25 | G16: 31 | H16: 80.6 % | I16: 1 | J16: 1 | K16: 100.0 % | L16: 5 | M16: 5 | N16: 100.0 % | O16: 3 | P16: 3 | Q16: 100.0 % | R16: 34 | S16: 40 | T16: 85.0 % | V16: 2001 | W16: 4. | X16: Tahko | Y16: 6. | AC16: 28.
B17: 2002 | C17: 3. | D17: Tahko | E17: 1 | F17: 3 | G17: 3 | H17: 100.0 % | I17: 0 | J17: 0 | K17: 0.0 % | L17: 1 | M17: 1 | N17: 100.0 % | O17: 0 | P17: 0 | Q17: 0.0 % | R17: 4 | S17: 4 | T17: 100.0 % | V17: 2002 | W17: 3. | X17: Tahko
B18: 2003 | C18: 2. | D18: KiPe | E18: 12 | F18: 31 | G18: 56 | H18: 55.4 % | I18: 3 | J18: 8 | K18: 37.5 % | L18: 1 | M18: 5 | N18: 20.0 % | O18: 0 | P18: 2 | Q18: 0.0 % | R18: 35 | S18: 71 | T18: 49.3 % | V18: 2003 | W18: 2. | X18: KiPe | Y18: 5. | AC18: 29.
B19: Yhteensä | E19: =SUM(E12:E18) -> 22 | F19: =SUM(F14:F18) -> 59 | G19: =SUM(G14:G18) -> 90 | H19: =PRODUCT(F19/G19) -> 65.6 % | I19: =SUM(I14:I18) -> 4 | J19: =SUM(J14:J18) -> 9 | K19: =PRODUCT(I19/J19) -> 44.4 % | L19: =SUM(L14:L18) -> 7 | M19: =SUM(M14:M18) -> 11 | N19: =PRODUCT(L19/M19) -> 63.6 % | O19: =SUM(O14:O18) -> 3 | P19: =SUM(P14:P18) -> 5 | Q19: =PRODUCT(O19/P19) -> 60.0 % | R19: =SUM(R14:R18) -> 73 | S19: =SUM(S14:S18) -> 115 | T19: =PRODUCT(R19/S19) -> 63.5 %
B21: KÄRKILYÖNNIT
G22: 0 > 1 | J22: 1 > 2 | M22: 2 > 3 | P22: 3 > k | S22: Yhteensä
E23: OTT | F23: KL | G23: YHT | H23: % | I23: KL | J23: YHT | K23: % | L23: KL | M23: YHT | N23: % | O23: KL | P23: YHT | Q23: % | R23: KL | S23: YHT | T23: %
B24: RUNKOSARJA | E24: =PRODUCT(E9) -> 107 | F24: 238 | G24: 411 | H24: 57.9 % | I24: 45 | J24: 87 | K24: 51.7 % | L24: 19 | M24: 42 | N24: 45.2 % | O24: 17 | P24: 28 | Q24: 60.7 % | R24: 313 | S24: 568 | T24: 55.1 %
B25: PLAY OFF | E25: =PRODUCT(E19) -> 22 | F25: =PRODUCT(F19) -> 59 | G25: 90 | H25: 65.6 % | I25: 4 | J25: 9 | K25: 44.4 % | L25: 7 | M25: 11 | N25: 63.6 % | O25: 3 | P25: 5 | Q25: 60.0 % | R25: 73 | S25: 115 | T25: 63.5 %
